Cogmind - Beta 13 @@@ ROGUE MODE // 2024.04.05 @ 14:36:02 Player: SPACEGOAT Result: Destroyed by Y-54 Guardian with Flak Gun Performance ------------- Evolutions (3) 1500 Regions Visited (9) 1800 Robots Destroyed (35) 175 Value Destroyed (831) 831 Prototype IDs (24) 480 Alien Tech Used (0) 0 Bonus (381) 381 TOTAL SCORE: 5167 Bonus ------- Follower Combat Kills 81 Aligned with FarCom 300 Cogmind --------- Core Integrity 0/700 Matter 240/300 Energy 5/100 System Corruption 7% Temperature Cool (0) Movement Core (100) Ox1 Location -7/Storage Parts ------- > --- POWER (1) -------- (None) > --- PROPULSION (3) --- (None) > --- UTILITY (7) ------ Advanced Terrain Scan Processor > --- WEAPON (2) ------- Advanced EMP Blaster > --- INVENTORY (5) ---- Improved Terrain Scan Processor Seismic Detector Experimental Targeting Computer Cloak of Protection Peak State ------------ > --- POWER ------------ Nuclear Core > --- PROPULSION ------- Cesium-ion Thruster Cesium-ion Thruster Cesium-ion Thruster > --- UTILITY ---------- Small Storage Unit Compact Battery Structural Scanner Improved Terrain Scanner Advanced Terrain Scan Processor Targeting Computer > --- WEAPON ----------- Chainsword > --- INVENTORY -------- Cesium-ion Thruster Compact Battery Improved Terrain Scan Processor Seismic Detector Cloak of Protection Missile Launcher [Rating: 31] Favorites ----------- Power Ion Engine Engine Ion Engine Power Core Nuclear Core Propulsion Cesium-ion Thruster Treads Light Treads Leg Improved Aluminum Leg Flight Unit Cesium-ion Thruster Utility Improved Terrain Scanner Device Improved Terrain Scanner Storage Small Storage Unit Processor Targeting Computer Protection Medium Armor Plating Weapon Heavy Hammer Energy Gun EM Pulse Gun Ballistic Gun Assault Rifle Launcher Advanced EMP Blaster Special Weapon Mining Laser Impact Weapon Heavy Hammer Slashing Weapon Chainsword Build | -11 -10 -10 -9 -9 -9 -8 -8 -7 -7 ------- Run | Yrd Mat Min Mat Min Exi Min Mat Fac Sto Slots Evolved 6 | . . . 2 . . . 2 2 . Power . | . . . . . . . . . . Propulsion 1 | . . . . . . . . 1 . Utility 5 | . . . 2 . . . 2 1 . Weapon . | . . . . . . . . . . Parts Attached 54 | 8 25 . 6 . . . . 6 9 Power 4 | 1 1 . . . . . . 1 1 Engine 2 | 1 1 . . . . . . . . Core 2 | . . . . . . . . 1 1 Reactor . | . . . . . . . . . . Propulsion 13 | 2 5 . 2 . . . . 1 3 Treads 3 | 2 1 . . . . . . . . Leg 4 | . 4 . . . . . . . . Wheel . | . . . . . . . . . . Hover . | . . . . . . . . . . Flight 6 | . . . 2 . . . . 1 3 Utility 12 | 2 4 . 2 . . . . 3 1 Device 3 | 1 . . 1 . . . . 1 . Storage 5 | 1 2 . . . . . . 1 1 Processor 3 | . 1 . 1 . . . . 1 . Hackware . | . . . . . . . . . . Protection 1 | . 1 . . . . . . . . Artifact . | . . . . . . . . . . Weapon 25 | 3 15 . 2 . . . . 1 4 Energy Gun 1 | 1 . . . . . . . . . Energy Cannon . | . . . . . . . . . . Ballistic Gun 11 | 2 9 . . . . . . . . Ballistic Cannon . | . . . . . . . . . . Launcher 4 | . . . . . . . . . 4 Special Weapon 5 | . 5 . . . . . . . . Impact Weapon 1 | . . . 1 . . . . . . Slashing Weapon 3 | . 1 . 1 . . . . 1 . Piercing Weapon . | . . . . . . . . . . Special Melee Weapon . | . . . . . . . . . . Unidentified Prototypes 1 | . . . . . . . . . 1 Corrupted Parts 1 | . . . . . . . . . 1 System Corruption 5 | . . . . . . . . . 5 Parts Lost 23 | . 6 . . . . . . . 17 Power 3 | . 2 . . . . . . . 1 Propulsion 7 | . 1 . . . . . . . 6 Utility 7 | . 1 . . . . . . . 6 Weapon 6 | . 2 . . . . . . . 4 Highest Loss Streak 17 | . 2 . . . . . . . 17 To Critical Strikes . | . . . . . . . . . . Average Slot Usage (%) 78 | . 96 85 71 . 77 77 63 78 66 Engine 3 | . 11 . . . . . . . . Treads 4 | . 15 . . . . . . . . Leg 4 | . 11 28 . . . . . . . Flight 13 | . . . 21 . 22 22 18 23 18 Device 10 | . 11 . 11 . 11 11 9 15 13 Storage 12 | . 14 14 11 . 11 11 9 15 12 Processor 13 | . 2 14 22 . 22 22 18 15 13 Energy Gun 2 | . 7 . . . . . . . . Ballistic Gun 6 | . 19 28 . . . . . . . Impact Weapon 4 | . . . 3 . 11 11 9 3 . Slashing Weapon 1 | . . . 1 . . . . 3 5 Naked Turns . | . . . . . . . . . . Heaviest Build 30 | 15 30 8 9 9 9 9 9 11 16 Greatest Support 40 | 40 40 26 26 10 10 10 10 15 15 Greatest Overweight (x) 4 | . 1 . 1 . . . . . 4 Average Overweight (x) . | . . . . . . . . . . Largest Inventory Capacity 15 | 8 15 8 8 8 8 8 8 8 8 Average Capacity 8 | 7 11 8 8 8 8 8 8 8 7 Most Carried 11 | 7 11 8 8 8 8 8 8 8 8 Average Carried 7 | 4 8 8 7 8 7 8 8 5 7 Final Capacity 8 | 8 8 8 8 8 8 8 8 8 5 Final Carried 8 | 6 8 8 8 8 8 8 8 8 4 Class Distribution -------------------- 47% | Scout 38% | Mutant 11% | Sprinter Dominant Class ---------------- Mutant | -10/Materials Mutant | -10/Mines Sprinter | -9/Materials Sprinter | -9/Mines Sprinter | -9/Exiles Scout | -8/Mines Scout | -8/Materials Scout | -7/Factory Scout | -7/Storage Resources | -11 -10 -10 -9 -9 -9 -8 -8 -7 -7 ----------- Run | Yrd Mat Min Mat Min Exi Min Mat Fac Sto Matter Collected 939 | 306 460 . 83 . . 11 . . 79 Remotely . | . . . . . . . . . . Salvage Created 1203 | 180 652 . 25 . . . 12 . 334 Parts 72 | 14 45 . . . . . . . 13 Haulers Intercepted 1 | . . . . . . . . . 1 Recyclers Shooed . | . . . . . . . . . . Parts Field Recycled . | . . . . . . . . . . Retrieved Matter . | . . . . . . . . . . Parts Self-Destructed . | . . . . . . . . . . Prevented . | . . . . . . . . . . Kills | -11 -10 -10 -9 -9 -9 -8 -8 -7 -7 ------- Run | Yrd Mat Min Mat Min Exi Min Mat Fac Sto Combat Hostiles Destroyed 20 | . 16 . . . . . . . 4 Melee 3 | . . . . . . . . . 3 Guns 14 | . 14 . . . . . . . . AOE 3 | . 2 . . . . . . . 1 Classes Destroyed 9 | 2 5 . . . . . . . 2 Builder 3 | . 1 . . . . . . . 2 Tunneler 5 | 5 . . . . . . . . . Hauler 1 | . . . . . . . . . 1 Recycler 2 | 1 . . . . . . . . 1 Operator 2 | . 1 . . . . . 1 . . Watcher 2 | . 1 . 1 . . . . . . Swarmer 5 | . 3 . . . . . . . 2 Grunt 14 | . 13 . . . . . . . 1 Sentry 1 | . . . . . . . . . 1 Best Kill Streak 5 | 5 4 . 1 . . . 1 . 5 Combat Bots Only 4 | . 4 . . . . . . . 3 Max Kills in Single Turn 2 | 1 2 . 1 . . . 1 . 2 Gunslinging 1 | . 1 . . . . . . . . Exploded 1 | . 1 . . . . . . . 1 Melee 1 | . . . . . . . . . 1 Uniques/NPCs Destroyed . | . . . . . . . . . . Combat | -11 -10 -10 -9 -9 -9 -8 -8 -7 -7 -------- Run | Yrd Mat Min Mat Min Exi Min Mat Fac Sto Hostile Shots Fired 404 | . 111 . 2 . . 2 . . 289 Missed 150 | . 12 . 2 . . 1 . . 135 Damage Taken 2620 | . 1191 . . . . 18 . . 1411 Core 804 | . 100 . . . . . . . 704 Absorbed by Shields . | . . . . . . . . . . Regen/Repaired (Parts) 109 | . 109 . . . . . . . . Core Remaining (%) 90 | 100 . 60 . . . 100 100 . . Volleys Fired 107 | 12 89 . . . . . . . 6 Largest 2 | 2 2 . . . . . . . 1 Hottest 100 | 60 100 . . . . . . . 39 Shots Fired 199 | 24 169 . . . . . . . 6 Gun 184 | 24 160 . . . . . . . . Cannon . | . . . . . . . . . . Launcher 6 | . . . . . . . . . 6 Special 9 | . 9 . . . . . . . . Kinetic 136 | 12 124 . . . . . . . . Thermal 9 | . 9 . . . . . . . . Explosive 1 | . . . . . . . . . 1 Electromagnetic 53 | 12 36 . . . . . . . 5 Robot Hit Streak 15 | 6 15 . . . . . . . 2 Robot Miss Streak 5 | 2 5 . . . . . . . 1 Penetration Max . | . . . . . . . . . . Secondary Targets 3 | . 3 . . . . . . . . Max Gunslinging Chain 1 | . 1 . . . . . . . . Shots Hit Robots 137 | 16 110 . 1 . . . 1 . 9 Core Hits 60 | 7 35 . . . . . . . 18 Critical Kills . | . . . . . . . . . . Critical Parts Destroyed 1 | . . . 1 . . . . . . Critical Strikes 1 | . . . 1 . . . . . . Smash 1 | . . . 1 . . . . . . Melee Attacks 51 | . . . 13 . . . 26 1 11 Impact 37 | . . . 10 . . . 26 1 . Slashing 14 | . . . 3 . . . . . 11 Piercing . | . . . . . . . . . . Sneak Attacks 2 | . . . 1 . . . . . 1 Combat Hostiles . | . . . . . . . . . . Follow-up Attacks . | . . . . . . . . . . Damage Inflicted 2613 | 253 1360 . 77 . . . 61 . 862 Guns 1490 | 212 1278 . . . . . . . . Cannons . | . . . . . . . . . . Explosions 691 | 41 82 . . . . . . . 568 Melee 432 | . . . 77 . . . 61 . 294 Ramming . | . . . . . . . . . . Kinetic 1002 | 76 926 . . . . . . . . Thermal 244 | 41 82 . . . . . . . 121 Explosive 152 | . . . . . . . . . 152 Electromagnetic 783 | 136 352 . . . . . . . 295 Impact 138 | . . . 77 . . . 61 . . Slashing 294 | . . . . . . . . . 294 Piercing . | . . . . . . . . . . Highest Corruption 7 | . . . . . . . . . 7 Average Corruption 1 | . . . . . . . . . 1 Corruption Purged . | . . . . . . . . . . Corruption Blocked . | . . . . . . . . . . Overload Shots . | . . . . . . . . . . Overflow Damage 113 | . . . 77 . . . 31 . 5 Projectiles . | . . . . . . . . . . Explosions 5 | . . . . . . . . . 5 Melee 108 | . . . 77 . . . 31 . . Knockbacks . | . . . . . . . . . . Impact . | . . . . . . . . . . Kinetic . | . . . . . . . . . . Secondary . | . . . . . . . . . . Self-Inflicted Damage 121 | . 35 . . . . . . . 86 Shots 6 | . 1 . . . . . . . 5 Rammed . | . . . . . . . . . . Targets Rammed . | . . . . . . . . . . Kicked . | . . . . . . . . . . Crushed . | . . . . . . . . . . Highest Temperature 53 | . 53 . . . . 7 . . 8 Average Temperature 16 | . 16 . . . . 7 . . 5 Received Heat Transfer 957 | . 609 . . . . 27 . . 321 Siege Activations . | . . . . . . . . . . Robots Corrupted . | . . . . . . . . . . Combat Hostiles . | . . . . . . . . . . Parts Fried 5 | 1 . . 2 . . . 2 . . Impact Corruptions 4 | . . . 3 . . . 1 . . Robots Melted . | . . . . . . . . . . Combat Hostiles . | . . . . . . . . . . Parts Melted 2 | . . . . . . . . . 2 Heat Transferred 400 | 50 150 . . . . . . . 200 Parts Sabotaged . | . . . . . . . . . . Parts Stolen . | . . . . . . . . . . Parts Stripped . | . . . . . . . . . . Power Chain Reactions 8 | 1 2 . . . . . . . 5 Alert | -11 -10 -10 -9 -9 -9 -8 -8 -7 -7 ------- Run | Yrd Mat Min Mat Min Exi Min Mat Fac Sto Peak Influence 285 | 30 285 86 137 53 . . 146 66 181 Initial 86 | . 19 86 33 53 . . . 65 29 Average 69 | 14 144 86 52 53 . . 12 65 81 Maximum Alert Level 1 | . 1 . . . . . . . . Low Security (%) 88 | 100 62 100 100 100 . 100 100 100 100 Level 1 11 | . 37 . . . . . . . . Level 2 . | . . . . . . . . . . Level 3 . | . . . . . . . . . . Level 4 . | . . . . . . . . . . Level 5 . | . . . . . . . . . . High Security . | . . . . . . . . . . Max Security . | . . . . . . . . . . Squads Dispatched 14 | . 6 . 2 . . . 1 . 5 Investigation 4 | . 2 . 1 . . . 1 . . Extermination . | . . . . . . . . . . Reinforcement 8 | . 4 . 1 . . . . . 3 Assault 2 | . . . . . . . . . 2 Garrison . | . . . . . . . . . . Intercept . | . . . . . . . . . . Searches Triggered . | . . . . . . . . . . Construction Impeded 1 | . . . . . . . . . 1 Haulers Reinforced . | . . . . . . . . . . Active Scanning Responses . | . . . . . . . . . . Cargo Convoy Interrupts . | . . . . . . . . . . Stealth | -11 -10 -10 -9 -9 -9 -8 -8 -7 -7 --------- Run | Yrd Mat Min Mat Min Exi Min Mat Fac Sto Distress Signals 6 | . 2 . 3 . . . . . 1 Communications Jammed . | . . . . . . . . . . Distress Signals . | . . . . . . . . . . Times Spotted 61 | . 27 . 7 . . 3 8 . 16 Peak Tracking Total 11 | . 5 . 7 . . 3 5 . 11 Tactical Retreats 11 | . 4 . 2 . . . 3 . 2 Traps | -11 -10 -10 -9 -9 -9 -8 -8 -7 -7 ------- Run | Yrd Mat Min Mat Min Exi Min Mat Fac Sto Traps Triggered 5 | . 1 . 1 . . . . . 3 Indirectly 1 | . . . . . . . . . 1 Trap Hack Attempts . | . . . . . . . . . . Triggered . | . . . . . . . . . . Disarmed . | . . . . . . . . . . Reprogrammed . | . . . . . . . . . . Reused . | . . . . . . . . . . Traps Extracted . | . . . . . . . . . . Installed . | . . . . . . . . . . Triggered . | . . . . . . . . . . Machines | -11 -10 -10 -9 -9 -9 -8 -8 -7 -7 ---------- Run | Yrd Mat Min Mat Min Exi Min Mat Fac Sto Machines Disabled 5 | . 1 . . . . . . . 4 Max in Single Turn 2 | . 1 . . . . . . . 2 Machines Repaired . | . . . . . . . . . . Machines Dismantled . | . . . . . . . . . . Machines Sabotaged . | . . . . . . . . . . Overloaded Fab Kills . | . . . . . . . . . . Hacking | -11 -10 -10 -9 -9 -9 -8 -8 -7 -7 --------- Run | Yrd Mat Min Mat Min Exi Min Mat Fac Sto Machines Accessed 20 | . 8 . 2 . 2 . 1 3 4 Terminals 13 | . 6 . 2 . . . 1 1 3 Fabricators 1 | . . . . . . . . 1 . Repair Stations 1 | . 1 . . . . . . . . Recycling Units 1 | . 1 . . . . . . . . Scanalyzers 1 | . . . . . . . . 1 . Garrison Access 1 | . . . . . . . . . 1 Total Hacks 63 | . 19 . 4 . 24 . 3 4 9 Successful 39 | . 9 . 2 . 24 . 1 . 3 Failed 24 | . 10 . 2 . . . 2 4 6 Catastrophic 4 | . 2 . 1 . . . . . 1 Database Lockouts . | . . . . . . . . . . Manual 19 | . 11 . 3 . 1 . . 3 1 Terminals 29 | . 15 . 4 . . . 3 2 5 Fabricators 1 | . . . . . . . . 1 . Repair Stations 3 | . 3 . . . . . . . . Recycling Units 1 | . 1 . . . . . . . . Scanalyzers 1 | . . . . . . . . 1 . Garrison Access 4 | . . . . . . . . . 4 Terminal Hacks 36 | . 6 . 2 . 24 . 1 . 3 Record 24 | . 1 . . . 23 . . . . Open Door 2 | . . . . . . . . . 2 Zone Layout 9 | . 5 . 2 . . . 1 . 1 Derelict Proto ID Bank 1 | . . . . . 1 . . . . Fabricator Hacks . | . . . . . . . . . . Repair Station Hacks 2 | . 2 . . . . . . . . Scan Component 1 | . 1 . . . . . . . . Repair 1 | . 1 . . . . . . . . Recycling Unit Hacks 1 | . 1 . . . . . . . . Report Inventory 1 | . 1 . . . . . . . . Scanalyzer . | . . . . . . . . . . Garrison Access Hacks . | . . . . . . . . . . Unauthorized Hacks . | . . . . . . . . . . Terminals . | . . . . . . . . . . Fabricators . | . . . . . . . . . . Repair Stations . | . . . . . . . . . . Recycling Units . | . . . . . . . . . . Scanalyzers . | . . . . . . . . . . Garrison Access . | . . . . . . . . . . Data Cores Recovered 1 | . . . . . . . 1 . . Used 1 | . . . . . . . 1 . . Hacking Detections 11 | . 4 . 1 . . . 1 3 2 Full Trace Events 2 | . 1 . . . . . 1 . . Feedback Events . | . . . . . . . . . . Feedback Blocked . | . . . . . . . . . . Robot Schematics Acquired . | . . . . . . . . . . Robots Built . | . . . . . . . . . . Authchips . | . . . . . . . . . . Time . | . . . . . . . . . . Total Robot Build Rating . | . . . . . . . . . . Part Schematics Acquired . | . . . . . . . . . . Parts Built . | . . . . . . . . . . Authchips . | . . . . . . . . . . Time . | . . . . . . . . . . Total Part Build Rating . | . . . . . . . . . . Parts Repaired 1 | . 1 . . . . . . . . Time 26 | . 26 . . . . . . . . Parts Recycled . | . . . . . . . . . . Recycled Matter . | . . . . . . . . . . Retrieved Matter . | . . . . . . . . . . Retrieved Components . | . . . . . . . . . . Parts Scanalyzed . | . . . . . . . . . . Part Schematics Acquired . | . . . . . . . . . . Parts Damaged . | . . . . . . . . . . Bothacking | -11 -10 -10 -9 -9 -9 -8 -8 -7 -7 ------------ Run | Yrd Mat Min Mat Min Exi Min Mat Fac Sto Used RIF Installer . | . . . . . . . . . . Robots Hacked . | . . . . . . . . . . Non-combat . | . . . . . . . . . . Combat . | . . . . . . . . . . Robot Hacks Applied . | . . . . . . . . . . Relay Couplers Released . | . . . . . . . . . . Fabnet Peak Effective % . | . . . . . . . . . . Robots Rewired . | . . . . . . . . . . Allies Hacked . | . . . . . . . . . . Hacks Repelled . | . . . . . . . . . . Allies | -11 -10 -10 -9 -9 -9 -8 -8 -7 -7 -------- Run | Yrd Mat Min Mat Min Exi Min Mat Fac Sto Total Allies 2 | . . . . . . . . . 2 Largest Group 2 | . . . . . . . . . 2 Highest-Rated Group 62 | . . . . . . . . . 62 Highest-Rated Ally 31 | . . . . . . . . . 31 Total Orders . | . . . . . . . . . . Ally Attacks 11 | . . . . . . . . . 11 Total Damage 192 | . . . . . . . . . 192 Kills 2 | . . . . . . . . . 2 Allies Corrupted . | . . . . . . . . . . Allies Melted . | . . . . . . . . . . Intel | -11 -10 -10 -9 -9 -9 -8 -8 -7 -7 ------- Run | Yrd Mat Min Mat Min Exi Min Mat Fac Sto Robot Analysis Total . | . . . . . . . . . . Derelict Logs Recovered . | . . . . . . . . . . Drone Launches . | . . . . . . . . . . Drone Recoveries . | . . . . . . . . . . Exploration | -11 -10 -10 -9 -9 -9 -8 -8 -7 -7 ------------- Run | Yrd Mat Min Mat Min Exi Min Mat Fac Sto Turns Passed 3630 | 151 1071 100 229 7 197 520 695 166 494 Spaces Moved 2526 | 61 493 63 139 20 485 442 286 197 340 Core 44 | 4 . . . . . . . . 40 Treads 298 | 57 241 . . . . . . . . Legs 320 | . 252 63 5 . . . . . . Wheels . | . . . . . . . . . . Hover . | . . . . . . . . . . Flight 1864 | . . . 134 20 485 442 286 197 300 Fastest Speed 29 | 50 120 120 32 32 32 32 32 29 29 Average Speed 58 | 152 139 120 35 32 32 32 32 29 38 Slowest Speed 275 | 160 190 120 125 32 32 32 32 29 275 Overloaded Moves . | . . . . . . . . . . Propulsion Burnouts . | . . . . . . . . . . Robots Hopped 2 | . . . . . . 1 . . 1 Cave-ins Triggered . | . . . . . . . . . . Exploration Rate (%) 39 | 5 80 21 21 4 92 69 23 8 68 Regions Visited 9 Branch Regions 5 Pre-discovered Areas 1 | . . . . . 1 . . . . Known Exits Taken . | . . . . . . . . . . Unknown Exits Taken 9 | 1 1 1 1 1 1 1 1 1 . Scrap Searched 2 | . . . . . . 2 . . . Spaces Dug 43 | . 6 . 11 . . . 24 1 1 Terrain Destroyed 66 | 2 8 . 11 . . . 24 1 20 Melee 37 | . . . 11 . . . 24 1 1 Projectile 6 | . 6 . . . . . . . . AOE 23 | 2 2 . . . . . . . 19 Terrain Rammed . | . . . . . . . . . . Walls Destroyed . | . . . . . . . . . . Machines Disabled . | . . . . . . . . . . Actions | -11 -10 -10 -9 -9 -9 -8 -8 -7 -7 --------- Run | Yrd Mat Min Mat Min Exi Min Mat Fac Sto Total 4361 | 95 693 87 297 19 526 818 843 303 680 Wait 1552 | . 71 25 123 . 40 378 532 93 290 Move 2513 | 60 492 62 138 19 484 439 285 196 338 Hop 2 | . . . . . . 1 . . 1 Pick Up 44 | 14 10 . 8 . 1 . . 5 6 Fast Attach 4 | . 1 . 1 . . . . . 2 Attach 28 | 7 5 . 4 . . . . 5 7 Detach 2 | . . . 1 . . . . 1 . Swap 22 | 1 19 . 1 . . . . 1 . Drop 18 | 1 6 . 8 . 1 . . 1 1 Fire 107 | 12 89 . . . . . . . 6 Melee 51 | . . . 13 . . . 26 1 11 Ram . | . . . . . . . . . . Kick . | . . . . . . . . . . Crush . | . . . . . . . . . . Escape Stasis 18 | . . . . . . . . . 18 Rewire . | . . . . . . . . . . Trap . | . . . . . . . . . . Miscellaneous . | . . . . . . . . . . Route ------- -11/Scrapyard -10/Materials (discovered 6 exits: *Mat x3 / [*Min x2] / [*Sub]) -10/Mines -9/Materials -9/Mines -9/Exiles -8/Mines -8/Materials -7/Factory -7/Storage History --------- Turn | Location | Event 11 | -11/Scrapyard | Discovered new exit (range 13) 152 | -11/Scrapyard | Entered Materials 308 | -10/Materials | Discovered new exit (range 16) 318 | -10/Materials | Build established: Mutant 418 | -10/Materials | Discovered new exit (range 16) 515 | -10/Materials | Discovered new exit (range 15) 773 | -10/Materials | Repaired Lgt. Treads 874 | -10/Materials | Discovered new exit (range 16) 986 | -10/Materials | Discovered new exit (range 16) 1200 | -10/Materials | Derelicts attacked the area 1207 | -10/Materials | Discovered new exit (range 14) 1223 | -10/Materials | Entered Mines 1317 | -10/Mines | Discovered new exit (range 4) 1323 | -10/Mines | Entered Materials 1323 | -9/Materials | Evolved 2 slots: Utility x2 1547 | -9/Materials | Discovered new exit (range 16) 1552 | -9/Materials | Entered Mines 1557 | -9/Mines | Deemed a non-threat by the Exiles lab entrance 1557 | -9/Mines | Discovered new exit (range 5) 1559 | -9/Mines | Entered Exiles 1568 | -9/Exiles | Met 8R-AWN 1573 | -9/Exiles | Met EX-HEX 1583 | -9/Exiles | Met EX-BIN 1587 | -9/Exiles | Aligned with FarCom system 1587 | -9/Exiles | Given EX-Vault access code 1601 | -9/Exiles | Opened EX-Vault 1605 | -9/Exiles | Found Cloak of Protection 1613 | -9/Exiles | Warned to stay clear of 0b10 Research branches 1625 | -9/Exiles | Build established: Sprinter 1625 | -9/Exiles | Met EX-DEC 1633 | -9/Exiles | Learned location of Zion (-7) 1707 | -9/Exiles | Visited The Gauntlet 1752 | -9/Exiles | Discovered new exit (range 14) 1756 | -9/Exiles | Left Exiles lab with Cloak of Protection 1756 | -9/Exiles | Entered Mines 2043 | -8/Mines | Build established: Scout 2160 | -8/Mines | Discovered new exit (range 15) 2276 | -8/Mines | Entered Materials 2276 | -8/Materials | Evolved 2 slots: Utility x2 2970 | -8/Materials | Discovered new exit (range 4) 2971 | -8/Materials | Entered Factory 2971 | -7/Factory | Evolved 2 slots: Propulsion x1, Utility x1 3133 | -7/Factory | Discovered new exit (range 13) 3137 | -7/Factory | Entered Storage 3512 | -7/Storage | Found Prototype Processor 3553 | -7/Storage | Core integrity fell below 50% 3586 | -7/Storage | Met a pair of Derelict thieves 3620 | -7/Storage | Core integrity fell below 20% 3631 | -7/Storage | Destroyed by Y-54 Guardian with Flak Gun Last Messages --------------- Adv. EMP Blaster destroyed. U-05 Engineer destroyed. Com. Battery destroyed. ALERT: Construction progress impeded, dispatching reinforcements to local area. U-05 Engineer lays Concrete. Door Terminal disabled. Destroyed Terrain Scanner. Y-54 Guardian misfires. Adv. EMP Blaster destroyed. Acquired Corrupted Adv. EMP Blaster. Integrated Corrupted Adv. EMP Blaster (+5). Structural Scanner destroyed. Chain reaction triggered in Corrupted Nuclear Core. G-47 Trooper shuts down. Chain reaction triggered in Corrupted Lgt. Ion Engine. Y-54 Guardian IFF system glitched. G-47 Trooper destroyed. Map ----- +----------------------------------------------------+ | ##### # ??? ?????????????????? | | ? ##### % # ? ???? ?????????????????? | | + # ?? ? ? ?????????????????? | | ? ##### # ????? ##??????????????? | | ?""""" ###### = ##?#???##+##??????????????? | | " ? " ###### =%[ ######### ###?????????????? | | ???? " ###### * ######### ##??????????????? | | ?""""" ###### = + ??????????????? | | ?? + ! %[= # ??????????????? | | #?#############"########### # ??????? T"????? | | ###?##########T%########### # ?????"" ""????? | | #?#?###?##??###%##?????#?## # ??? ##????? | | ?#?#?##?????### ###?####?## # ? ##????? | | #?????#?#???######?##?#??## m# ##????? | | ?#?#####??#########???##?##%g/ ##????? | | ###?#????#???##?#?#?#???###!=############????? | | ????###?#?#????#?##?#????## # #" ???????? | | ??####??#?????###??#?#???# [ "??????????? | | ????#?###?#???#??#?##?#### [ "??????????? | | ????##???##?????#??###?### [Y ###"??????????? | | ???###??????#?#?#??#??### Y !!####??????????? | | ?????######??###??##?#### [= ##???????????? | | ?????#?##??#???#?##?###### ###?????????????? | | ??????##?#?##?##?#???### %[ ##?????????????? | | ???????##?#?#?#?##????## ##?????????????? | | ???????????#??#???#??### @ ]]##?????????????? | | ???????????????#??????##] ] ]##?????????????? | | ??????????????????????##########?????????????? | | ??????????????????????##########?????????????? | | ?????????????????????????????????????????????? | | | | | | | | | | | | | | | | | | | | | | | | | | | | | | | | | | | | | | | | | +----------------------------------------------------+ Best States ------------- Heat Dissipation 34 Energy Generation 14 Energy Capacity 440 Matter Stores 300 Matter Capacity 300 Sight Range 16 Terrain Scan Range 16 Terrain Scan Density 210 Armor Coverage 225 Evasion (%) 64 Targeting Accuracy 5 Recoil Reduction 2 Item Schematics ----------------- None Robot Schematics ------------------ None Fabricated ------------ Nothing Alien Tech Used ----------------- None Achievements -------------- Dynamic Key Omniscient Cartographer Challenges ------------ None Game ------ Seed WeaponsActuatorSlayer Manual? 0 Play Time 01:14:09 Cumulative 17.3 hours Start 2024.04.05 @ 12:34:30 End 2024.04.05 @ 14:36:02 Sessions 3 Manual Loads 0 Difficulty Rogue Special Mode None Game No. 13 Rogue 13 Adventurer 0 Explorer 0 Win Type - Total 0 Types 0/0/0/0/0/0/0/0/0 Lore% 16 Gallery% 21 Achievement% 14 Wizard Run 0 Options --------- Layout 1 ASCII 0 Keyboard 0 Movement Mouse Keybinds 0 Fullscreen 1 Font 24/Smallcaps Map View 50x35 Zoom Use 0% Tactical HUD 0 Map Filters NONE Filters NONE Steam 1 RUN: 91bb9379-6b7b-4675-b455-51413ef5c2c2